fUST/lending_fUST_20250224
["ID","MTS","AMOUNT","RATE_DAILY","PERIOD"]
[354267275,1740375049546,-502.67644077,0.00015327,2]
[354267276,1740375049556,-500.0,0.00015327,2]
[354267277,1740375049566,-500.0,0.00015327,2]
[354267278,1740375049576,-503.35902159,0.00015327,2]
[354267279,1740375049585,-500.0,0.00015327,2]
[354267280,1740375049594,-503.25504373,0.00015327,2]
[354267281,1740375049604,-156.61,0.00015327,2]
[354267282,1740375049613,-500.0,0.00015327,2]
[354267283,1740375049622,-500.0,0.00015327,2]
[354267284,1740375049632,-501.74621952,0.00015327,2]
[354267285,1740375049642,-502.28916816,0.00015327,2]
[354267286,1740375049654,-502.8444013,0.00015327,2]
[354267287,1740375049667,-500.0,0.00015327,2]
[354267288,1740375049677,-380.44560748,0.00015327,2]
[354267289,1740375049687,-500.0,0.00015327,2]
[354267290,1740375049697,-391.03094487,0.00015327,2]
[354267291,1740375049707,-500.0,0.00015327,2]
[354267292,1740375049717,-10450.8495402,0.00015351,2]
[354267293,1740375049726,-500.0,0.00015361,2]
[354267294,1740375049736,-500.0,0.00015361,2]
[354267295,1740375049820,-487.69260498,0.00015361,2]
[354267296,1740375049830,-578.8693,0.00015361,2]
[354267297,1740375049839,-500.0,0.00015361,2]
[354267298,1740375049848,-509.75747011,0.00015361,2]
[354267299,1740375049857,-500.0,0.00015361,2]
[354267300,1740375049867,-1243.27,0.00015361,2]
[354267301,1740375049876,-550.69,0.00015384,2]
[354267302,1740375049885,-3779.11,0.00015384,2]
[354267303,1740375049895,-635.8,0.00015384,2]
[354267304,1740375049904,-504.26,0.00015384,2]
[354267305,1740375049913,-1384.67,0.00015384,2]
[354267306,1740375049922,-500.0,0.000154,2]
[354267307,1740375049931,-500.0,0.000154,2]
[354267308,1740375049940,-243.64,0.000154,2]
[354267309,1740375049950,-500.0,0.000154,2]
[354267310,1740375049958,-602.61,0.000154,2]
[354267311,1740375049967,-513.96,0.0001541,2]
[354267312,1740375049977,-500.0,0.0001541,2]
[354267313,1740375049986,-500.0,0.0001541,2]
[354267314,1740375049995,-626.47486817,0.0001541,2]
[354267315,1740375050004,-1279.49,0.0001541,2]
[354267316,1740375050013,-500.0,0.0001541,2]
[354267317,1740375050022,-500.0,0.0001541,2]
[354267318,1740375050032,-500.0,0.0001541,2]
[354267319,1740375050042,-508.34,0.0001541,2]
[354267320,1740375050051,-226.70457547,0.0001541,2]
[354267321,1740375050060,-429.86629602,0.0001541,2]
[354267322,1740375050070,-633.76374203,0.0001541,2]
[354267323,1740375050079,-500.0,0.0001541,2]
[354267324,1740375050089,-1243.27,0.00015443,2]
[354267325,1740375050098,-550.69,0.00015466,2]
[354267326,1740375050107,-3779.11,0.00015466,2]
[354267327,1740375050116,-635.8,0.00015466,2]
[354267328,1740375050126,-504.26,0.00015466,2]
[354267329,1740375050135,-1384.67,0.00015466,2]
[354267330,1740375050144,-500.0,0.00015482,2]
[354267331,1740375050152,-500.0,0.00015482,2]
[354267332,1740375050161,-1279.49,0.00015492,2]
[354267333,1740375050170,-500.0,0.00015492,2]
[354267334,1740375050179,-500.0,0.00015492,2]
[354267335,1740375050189,-1001.1163381,0.00015522,2]
[354267336,1740375050198,-178.76616021,0.00015522,2]
[354267337,1740375050207,-1122.14140017,0.00015525,2]
[354267338,1740375050320,-389.04746802,0.00013698,2]
[354267339,1740375050330,-504.11950349,0.0001378,2]
[354267340,1740375050339,-305.57086167,0.00013987,2]
[354267341,1740375050350,-194.42913833,0.00013987,2]
[354267342,1740375050360,-328.20821012,0.00014069,2]
[354267343,1740375050392,-171.79178988,0.00014069,2]
[354267344,1740375050404,-500.0,0.00014151,2]
[354267345,1740375050413,-500.0,0.00014233,2]
[354267346,1740375050423,-121.12859983,0.00015525,2]
[354267347,1740375050432,-550.69,0.00015549,2]
[354267348,1740375050441,-3134.74335029,0.00015549,2]
[354267349,1740375050479,-1479.06918283,0.0001512,2]
[354267350,1740375050489,-644.36664971,0.00015549,2]
[354267351,1740375050499,-635.8,0.00015549,2]
[354267352,1740375050508,-504.26,0.00015549,2]
[354267353,1740375050517,-1384.67,0.00015549,2]
[354267354,1740375050527,-500.0,0.00015564,2]
[354267355,1740375050536,-500.0,0.00015564,2]
[354267356,1740375050545,-1279.49,0.00015574,2]
[354267357,1740375050554,-500.0,0.00015574,2]
[354267358,1740375050563,-1243.27,0.00015607,2]
[354267359,1740375050573,-550.69,0.00015631,2]
[354267360,1740375050583,-3779.11,0.00015631,2]
[354267361,1740375050592,-635.8,0.00015631,2]
[354267362,1740375050602,-504.26,0.00015631,2]
[354267363,1740375050611,-1384.67,0.00015631,2]
[354267364,1740375050621,-500.0,0.00015647,2]
[354267365,1740375050631,-1279.49,0.00015656,2]
[354267366,1740375050640,-500.0,0.00015656,2]
[354267367,1740375050653,-1243.27,0.0001569,2]
[354267368,1740375050664,-550.69,0.00015713,2]
[354267369,1740375050674,-3779.11,0.00015713,2]
[354267370,1740375050683,-635.8,0.00015713,2]
[354267371,1740375050693,-504.26,0.00015713,2]
[354267372,1740375050703,-1384.67,0.00015713,2]
[354267373,1740375050712,-1000.0,0.00015721,2]
[354267374,1740375050722,-1000.0,0.00015721,2]
[354267375,1740375050731,-1000.0,0.00015721,2]
[354267376,1740375050741,-501.37791409,0.00015721,2]
[354267377,1740375050750,-1000.0,0.00015721,2]
[354267378,1740375050759,-621.36497588,0.00015721,2]
[354267379,1740375050827,-539.647,0.00015326,2]
[354267380,1740375050836,-1976.254,0.00015326,2]
[354267381,1740375050845,-378.63502412,0.00015721,2]
[354267382,1740375050855,-525.19206579,0.00015721,2]
[354267383,1740375050864,-1000.0,0.00015721,2]
[354267384,1740375050874,-500.0,0.00015729,2]
[354267385,1740375050883,-1279.49,0.00015738,2]
[354267386,1740375050892,-500.0,0.00015738,2]
[354267387,1740375050903,-1243.27,0.00015772,2]
[354267388,1740375050912,-186.892795,0.00015775,2]
[354267389,1740375050922,-3779.11,0.00015795,2]
[354267390,1740375050933,-635.8,0.00015795,2]
[354267391,1740375050942,-504.26,0.00015795,2]
[354267392,1740375050951,-1384.67,0.00015795,2]
[354267393,1740375050960,-573.64599612,0.00015811,2]
[354267394,1740375050969,-1279.49,0.00015821,2]
[354267395,1740375050978,-500.0,0.00015821,2]
[354267396,1740375050987,-502.08020472,0.00015853,2]
[354267397,1740375050996,-502.81902964,0.00015853,2]
[354267398,1740375051005,-1243.27,0.00015854,2]
[354267399,1740375051014,-57.58995082,0.0001586,2]
[354267400,1740375051024,-3779.1971,0.00015877,2]
[354267401,1740375051034,-635.8242851,0.00015877,2]
[354267402,1740375051043,-504.44,0.00015877,2]
[354267403,1740375051052,-1384.73,0.00015877,2]
[354267404,1740375051061,-606.01537475,0.000159,2]
[354267405,1740375051070,-500.0,0.000159,2]
[354267406,1740375051079,-1279.49,0.00015903,2]
[354267407,1740375051088,-500.0,0.00015903,2]
[354267408,1740375051098,-1243.27,0.00015936,2]
[354267409,1740375051107,-500.0,0.0001596,2]
[354267410,1740375051116,-1279.49,0.00015985,2]
[354267411,1740375051125,-500.0,0.00015985,2]
[354267412,1740375051134,-4479.416738,0.00016,2]
[354267413,1740375051144,-500.0,0.00016,2]
[354267414,1740375051154,-1243.27,0.00016018,2]
[354267415,1740375051163,-500.0,0.0001606,2]
[354267416,1740375051172,-1279.49,0.00016067,2]
[354267417,1740375051181,-326.4356346,0.00016091,2]
[354267418,1740375051190,-1243.27,0.00016101,2]
[354267419,1740375051199,-1279.49,0.00016149,2]
[354267420,1740375051208,-500.0,0.0001616,2]
[354267421,1740375051217,-499.0,0.00016164,2]
[354267422,1740375051226,-465.02764054,0.00016172,2]
[354267423,1740375051236,-1243.27,0.00016183,2]
[354267424,1740375051245,-4981.34434468,0.000162,2]
[354267425,1740375051255,-4981.34434466,0.000162,2]
[354267426,1740375051264,-4981.34434466,0.000162,2]
[354267427,1740375051273,-1279.49,0.00016232,2]
[354267428,1740375051282,-500.0,0.0001626,2]
[354267429,1740375051292,-1243.27,0.00016265,2]
[354267430,1740375051301,-150.0,0.00016309,4]
[354267431,1740375051310,-1279.49,0.00016314,2]
[354267432,1740375051319,-3050.98013871,0.0001633,2]
[354267433,1740375051328,-1243.27,0.00016347,2]
[354267434,1740375051337,-500.0,0.0001636,2]
[354267435,1740375051347,-1279.49,0.00016396,2]
[354267436,1740375051357,-149.18124976,0.000164,7]
[354267440,1740375599330,179.233112,9.041e-05,2]
[354267497,1740376232474,-300.0,0.00013062,2]
[354267499,1740376232484,-820.28060767,0.00013063,2]
[354267501,1740376232495,-3255.12384721,0.00013063,2]
[354267503,1740376232507,-3425.0166302,0.00013063,2]
[354267507,1740376232533,-768.94507582,0.00013063,2]
[354267724,1740376238352,-277.46854865,0.00013063,2]
[354267727,1740376238364,-1504.44354021,0.00013063,2]
[354267729,1740376238376,-1312.5676251,0.00013063,2]
[354267740,1740376238470,-471.38553484,0.00013063,2]
[354267743,1740376238479,-166.0,0.00013125,2]
[354267746,1740376238488,-175.305491,0.00013699,2]
[354267749,1740376238498,-500.0,0.00014046,2]
[354267752,1740376238507,-500.0,0.00014046,2]
[354267755,1740376238516,-500.0,0.00014046,2]
[354267758,1740376238525,-500.0,0.00014046,2]
[354267762,1740376238534,-453.47896889,0.00014046,2]
[354267765,1740376238543,-6034.33239609,0.00014047,2]
[354267804,1740376240525,-267.2614,0.00014047,2]
[354267805,1740376240536,-715.6763441,0.00014047,2]
[354267806,1740376240581,-912.11962642,0.00014047,2]
[354267807,1740376240593,-903.50379367,0.00014047,2]
[354267834,1740376243430,-721.29925042,0.00014047,2]
[354267835,1740376243487,-741.32642241,0.00014047,2]
[354267836,1740376243547,-1646.99629468,0.00014047,2]
[354267856,1740376922356,181.383759,9.041e-05,2]
[354267942,1740377432735,-300.0,0.00013849,2]
[354267945,1740377432744,-225.05090305,0.0001385,2]
[354267947,1740377432756,-1420.81024869,0.0001385,2]
[354267949,1740377432767,-9361.4751296,0.0001385,2]
[354267951,1740377432777,-157.36314827,0.00013927,2]
[354267953,1740377432786,-391.00759316,0.0001395,2]
[354267958,1740377432826,-618.6632773,0.0001395,2]
[354268023,1740377438413,-4147.84362643,0.0001395,2]
[354268024,1740377438422,-500.0,0.00013973,2]
[354268025,1740377438432,-500.0,0.00013973,2]
[354268026,1740377438441,-223.04313348,0.00013999,2]
[354268027,1740377438450,-226.44025407,0.00013999,2]
[354268028,1740377438459,-4132.07879635,0.00014,5]
[354268029,1740377438468,-67056.84036448,0.00014,2]
[354268030,1740377438498,-5816.492546,0.00014,2]
[354268031,1740377438510,-8795.91701905,0.00014,2]
[354268032,1740377438521,-28014.56377247,0.00014,2]
[354268033,1740377438532,-8475.09714849,0.00014,2]
[354268034,1740377438547,-1238.74465607,0.00014,2]
[354268061,1740377443622,-603.53567869,0.00014,2]
[354268167,1740377983733,183.473734,9.041e-05,2]
[354268250,1740378632797,-300.0,0.00012918,2]
[354268253,1740378632807,-6977.67965351,0.00012919,2]
[354268263,1740378632892,-3723.22227419,0.00012919,2]
[354268265,1740378632902,-157.36314825,0.00013799,2]
[354268267,1740378632911,-188.9232215,0.00013881,2]
[354268270,1740378632921,-500.0,0.00013898,2]
[354268274,1740378632931,-500.0,0.00013898,2]
[354268277,1740378632942,-500.0,0.00013898,2]
[354268280,1740378632953,-500.0,0.00013898,2]
[354268283,1740378632962,-500.0,0.00013898,2]
[354268286,1740378632971,-500.0,0.00013898,2]
[354268289,1740378632982,-500.0,0.00013898,2]
[354268292,1740378632991,-500.0,0.00013898,2]
[354268294,1740378633000,-500.0,0.00013898,2]
[354268296,1740378633010,-500.0,0.00013898,2]
[354268298,1740378633021,-500.0,0.00013898,2]
[354268300,1740378633031,-500.0,0.00013898,2]
[354268302,1740378633040,-500.0,0.00013898,2]
[354268304,1740378633050,-500.0,0.00013898,2]
[354268306,1740378633061,-500.0,0.00013898,2]
[354268308,1740378633070,-500.0,0.00013898,2]
[354268310,1740378633079,-500.0,0.00013898,2]
[354268312,1740378633088,-500.0,0.00013898,2]
[354268314,1740378633098,-500.0,0.00013898,2]
[354268316,1740378633108,-500.0,0.00013898,2]
[354268318,1740378633118,-500.0,0.00013898,2]
[354268320,1740378633128,-448.77927489,0.00013898,2]
[354268322,1740378633140,-51.22072511,0.00013898,2]
[354268324,1740378633149,-500.0,0.00013898,2]
[354268326,1740378633158,-431.89520985,0.00013898,2]
[354268328,1740378633170,-85.06119848,0.00013898,2]
[354268330,1740378633179,-500.0,0.00013899,2]
[354268332,1740378633188,-500.0,0.00013899,2]
[354268334,1740378633198,-500.0,0.00013899,2]
[354268337,1740378633207,-500.0,0.00013899,2]
[354268339,1740378633216,-500.0,0.00013899,2]
[354268341,1740378633226,-501.93599235,0.00013899,2]
[354268343,1740378633236,-500.0,0.00013899,2]
[354268345,1740378633245,-500.0,0.00013899,2]
[354268346,1740378633255,-509.45484516,0.00013899,2]
[354268348,1740378633264,-511.07091318,0.00013899,2]
[354268350,1740378633274,-633.30671295,0.00013899,2]
[354268353,1740378633283,-500.0,0.00013899,2]
[354268355,1740378633292,-500.0,0.00013899,2]
[354268356,1740378633303,-500.0,0.00013899,2]
[354268359,1740378633312,-505.63379447,0.00013899,2]
[354268360,1740378633322,-500.0,0.00013899,2]
[354268363,1740378633332,-500.0,0.00013899,2]
[354268365,1740378633342,-500.0,0.00013899,2]
[354268367,1740378633351,-520.86511227,0.00013899,2]
[354268369,1740378633361,-500.0,0.00013899,2]
[354268371,1740378633370,-511.23110889,0.00013899,2]
[354268373,1740378633379,-500.0,0.00013899,2]
[354268375,1740378633389,-500.0,0.00013899,2]
[354268377,1740378633398,-500.0,0.00013899,2]
[354268379,1740378633407,-204.016217,0.00013899,2]
[354268381,1740378633417,-30.02906132,0.00013899,2]
[354268444,1740378638565,-384.19303957,0.00013899,2]
[354268445,1740378638575,-500.0,0.00013899,2]
[354268446,1740378638585,-570.60342242,0.00013899,2]
[354268447,1740378638594,-500.0,0.00013899,2]
[354268448,1740378638604,-500.0,0.00013899,2]
[354268449,1740378638614,-500.0,0.00013899,2]
[354268450,1740378638623,-500.0,0.00013899,2]
[354268451,1740378638632,-500.0,0.00013899,2]
[354268452,1740378638642,-500.0,0.00013899,2]
[354268453,1740378638652,-500.0,0.00013899,2]
[354268454,1740378638661,-500.0,0.00013899,2]
[354268455,1740378638670,-500.0,0.00013899,2]
[354268456,1740378638679,-500.0,0.00013899,2]
[354268457,1740378638688,-500.0,0.00013899,2]
[354268458,1740378638697,-500.0,0.00013899,2]
[354268459,1740378638706,-500.0,0.00013899,2]
[354268460,1740378638715,-500.0,0.00013899,2]
[354268461,1740378638724,-503.19341236,0.00013899,2]
[354268463,1740378638734,-502.07186726,0.00013899,2]
[354268465,1740378638743,-567.38,0.00013899,2]
[354268467,1740378638753,-501.43737311,0.00013899,2]
[354268469,1740378638762,-500.0,0.00013899,2]
[354268471,1740378638771,-623.59,0.00013899,2]
[354268473,1740378638780,-500.0,0.00013899,2]
[354268475,1740378638789,-518.28,0.00013899,2]
[354268477,1740378638798,-500.0,0.00013899,2]
[354268479,1740378638807,-502.2314325,0.00013899,2]
[354268481,1740378638816,-500.0,0.00013899,2]
[354268483,1740378638825,-510.03775686,0.00013899,2]
[354268485,1740378638834,-500.0,0.00013899,2]
[354268487,1740378638843,-500.0,0.00013899,2]
[354268489,1740378638862,-500.0,0.00013899,2]
[354268491,1740378638871,-500.0,0.00013899,2]
[354268493,1740378638880,-500.0,0.00013899,2]
[354268495,1740378638889,-500.0,0.00013899,2]
[354268497,1740378638898,-500.0,0.00013899,2]
[354268499,1740378638907,-500.0,0.00013899,2]
[354268501,1740378638916,-500.0,0.00013899,2]
[354268503,1740378638925,-500.0,0.00013899,2]
[354268505,1740378638934,-500.0,0.00013899,2]
[354268507,1740378638943,-500.0,0.00013899,2]
[354268509,1740378638956,-1113.09,0.00013899,2]
[354268510,1740378638965,-289.43,0.00013899,2]
[354268512,1740378638975,-500.0,0.00013899,2]
[354268514,1740378638984,-500.0,0.00013899,2]
[354268516,1740378638994,-500.0,0.00013899,2]
[354268519,1740378639003,-799.44,0.00013899,2]
[354268520,1740378639012,-500.0,0.00013899,2]
[354268522,1740378639023,-500.0,0.00013899,2]
[354268524,1740378639032,-353.02662277,0.00013899,2]
[354268527,1740378639044,-146.97337723,0.00013899,2]
[354268528,1740378639053,-384.80576639,0.00013899,2]
[354268530,1740378639063,-500.0,0.00013899,2]
[354268532,1740378639073,-500.0,0.00013899,2]
[354268534,1740378639082,-514.02691282,0.00013899,2]
[354268536,1740378639091,-500.0,0.00013899,2]
[354268538,1740378639100,-547.58769956,0.00013899,2]
[354268540,1740378639109,-500.0,0.00013899,2]
[354268542,1740378639119,-500.0,0.00013899,2]
[354268544,1740378639128,-586.72,0.00013899,2]
[354268546,1740378639137,-500.0,0.00013899,2]
[354268548,1740378639146,-500.0,0.00013899,2]
[354268550,1740378639155,-98.2178809,0.00013899,2]
[354268552,1740378639167,-401.7821191,0.00013899,2]
[354268554,1740378639177,-533.64,0.00013899,2]
[354268556,1740378639186,-19.07247948,0.000139,2]
[354268559,1740378639197,-3810.99269599,0.000139,2]
[354268714,1740378640903,-870.6123134,0.000139,2]
[354268717,1740378640915,-374.888957,0.000139,2]
[354269163,1740379029369,185.473605,9.041e-05,2]
[354269167,1740379609363,448.19,0.0001,2]
[354269226,1740379831980,-1200.000002,0.00012917,2]
[354269229,1740379831992,-631.274844,0.00012917,2]
[354269231,1740379832003,-563.78175022,0.00012917,2]
[354269233,1740379832020,-342.42666817,0.00012917,2]
[354269814,1740379837819,-4119.55440061,0.00012917,2]
[354269816,1740379837829,-217.6237564,0.00013766,2]
[354269818,1740379837839,-157.36314825,0.00013797,2]
[354269820,1740379837848,-321.6363476,0.00013896,2]
[354269822,1740379837859,-178.3636524,0.00013896,2]
[354269824,1740379837868,-500.0,0.00013896,2]
[354269826,1740379837878,-300.0,0.00013896,2]
[354269828,1740379837887,-500.0,0.00013896,2]
[354269830,1740379837897,-500.0,0.00013897,2]
[354269832,1740379837906,-500.0,0.00013897,2]
[354269834,1740379837915,-500.0,0.00013897,2]
[354269836,1740379837924,-500.0,0.00013897,2]
[354269838,1740379837934,-439.9825286,0.00013897,2]
[354269840,1740379837945,-60.0174714,0.00013897,2]
[354269842,1740379837954,-500.0,0.00013897,2]
[354269844,1740379837963,-500.0,0.00013897,2]
[354269846,1740379837972,-636.42,0.00013897,2]
[354269848,1740379837981,-500.0,0.00013897,2]
[354269850,1740379837990,-500.0,0.00013897,2]
[354269852,1740379837999,-155.02577969,0.00013897,2]
[354269854,1740379838010,-344.97422031,0.00013897,2]
[354269856,1740379838019,-500.0,0.00013897,2]
[354269858,1740379838028,-500.0,0.00013897,2]
[354269860,1740379838038,-576.94761432,0.00013897,2]
[354269862,1740379838047,-500.0,0.00013897,2]
[354269864,1740379838056,-536.16,0.00013897,2]
[354269866,1740379838065,-518.47262479,0.00013897,2]
[354269868,1740379838074,-500.0,0.00013897,2]
[354269870,1740379838083,-500.0,0.00013897,2]
[354269872,1740379838092,-278.0,0.00013897,2]
[354269874,1740379838101,-500.0,0.00013897,2]
[354269876,1740379838111,-500.0,0.00013897,2]
[354269878,1740379838120,-500.0,0.00013897,2]
[354269880,1740379838130,-500.0,0.00013897,2]
[354269882,1740379838139,-1420.19,0.00013897,2]
[354269884,1740379838148,-500.0,0.00013897,2]
[354269886,1740379838158,-259.16127313,0.00013897,2]
[354269888,1740379838169,-500.0,0.00013897,2]
[354269890,1740379838178,-500.82760763,0.00013897,2]
[354269892,1740379838187,-507.35681462,0.00013897,2]
[354269894,1740379838196,-500.0,0.00013897,2]
[354269896,1740379838205,-500.0,0.00013897,2]
[354269898,1740379838215,-500.0,0.00013897,2]
[354269900,1740379838223,-500.0,0.00013897,2]
[354269902,1740379838232,-500.0,0.00013897,2]
[354269904,1740379838242,-500.0,0.00013897,2]
[354269906,1740379838251,-500.0,0.00013897,2]
[354269908,1740379838260,-500.0,0.00013897,2]
[354269910,1740379838271,-500.0,0.00013897,2]
[354269912,1740379838280,-585.74,0.00013897,2]
[354269914,1740379838289,-500.0,0.00013897,2]
[354269916,1740379838298,-500.0,0.00013897,2]
[354269918,1740379838307,-238.65921146,0.00013897,2]
[354269920,1740379838319,-261.34078854,0.00013897,2]
[354269922,1740379838328,-500.0,0.00013897,2]
[354269924,1740379838337,-500.0,0.00013897,2]
[354269926,1740379838346,-500.0,0.00013897,2]
[354269928,1740379838358,-500.0,0.00013897,2]
[354269930,1740379838367,-500.0,0.00013897,2]
[354269932,1740379838377,-500.0,0.00013897,2]
[354269934,1740379838387,-599.83,0.00013897,2]
[354269936,1740379838397,-562.27,0.00013897,2]
[354269938,1740379838407,-500.0,0.00013897,2]
[354269940,1740379838417,-500.0,0.00013897,2]
[354269942,1740379838427,-500.0,0.00013897,2]
[354269944,1740379838437,-500.0,0.00013897,2]
[354269946,1740379838446,-500.0,0.00013897,2]
[354269948,1740379838456,-500.0,0.00013897,2]
[354269950,1740379838465,-502.75966118,0.00013897,2]
[354269952,1740379838474,-500.0,0.00013897,2]
[354269954,1740379838484,-504.32029485,0.00013897,2]
[354269956,1740379838492,-381.31,0.00013897,2]
[354269958,1740379838501,-503.51119469,0.00013898,2]
[354269960,1740379838511,-494.60138263,0.00013898,2]
[354269962,1740379838521,-500.0,0.00013898,2]
[354269964,1740379838529,-500.0,0.00013898,2]
[354269966,1740379838538,-500.0,0.00013898,2]
[354269968,1740379838547,-500.0,0.00013898,2]
[354269970,1740379838557,-115.7853266,0.00013898,2]
[354270137,1740379840093,-500.0,0.00013896,2]
[354270140,1740379840102,-384.2146734,0.00013898,2]
[354270142,1740379840111,-500.0,0.00013898,2]
[354270144,1740379840121,-500.0,0.00013898,2]
[354270146,1740379840130,-500.0,0.00013898,2]
[354270148,1740379840139,-137.1226516,0.00013898,2]
[354270150,1740379840151,-271.35708111,0.00013898,2]
[354270344,1740379845900,-500.0,0.00013897,2]
[354270345,1740379845910,-532.63026729,0.00013898,2]
[354270346,1740379845919,-502.90584212,0.00013899,2]
[354270347,1740379845928,-500.0,0.00013899,2]
[354270348,1740379845937,-500.0,0.00013899,2]
[354270349,1740379845946,-500.0,0.00013899,2]
[354270350,1740379845955,-500.0,0.00013899,2]
[354270351,1740379845964,-500.0,0.00013899,2]
[354270352,1740379845974,-151.0,0.00013899,2]
[354270353,1740379845983,-15150.43355413,0.000139,2]
[354270354,1740379845993,-203.474261,0.000139,2]
[354270355,1740379846002,-500.0,0.00013973,2]
[354270356,1740379846011,-500.0,0.00013973,2]
[354270357,1740379846020,-239.15891132,0.00013973,2]
[354270358,1740379846030,-500.0,0.00013973,2]
[354270359,1740379846039,-500.0,0.00013973,2]
[354270360,1740379846048,-500.0,0.00013973,2]
[354270361,1740379846057,-500.0,0.00013973,2]
[354270362,1740379846066,-500.0,0.00013978,2]
[354270363,1740379846075,-161.0878184,0.00013978,2]
[354270364,1740379846083,-500.0,0.00013978,2]
[354270365,1740379846092,-500.0,0.00013978,2]
[354270366,1740379846101,-2066.03939818,0.00013978,5]
[354270367,1740379846110,-15072.71993385,0.00013978,5]
[354270369,1740380021847,176.199924,9.041e-05,2]
[354270373,1740380708264,4014.35948027,0.00019,120]
[354270388,1740381032102,-10442.17754575,0.000137,2]
[354270390,1740381032114,-10847.87025212,0.000137,2]
[354270396,1740381032160,-2457.03670735,0.000137,2]
[354270398,1740381032173,-2881.77970689,0.000137,2]
[354270400,1740381032185,-577.51861809,0.000137,2]
[354270413,1740381032335,-11810.57075075,0.000137,2]
[354270437,1740381038122,-17980.93034034,0.000137,2]
[354270438,1740381038134,-46432.17217708,0.000137,2]
[354270439,1740381038168,-309.8,0.000137,2]
[354270449,1740381040372,-101651.50787597,0.000137,2]
[354270464,1740381043122,-21775.29055602,0.000137,2]
[354270465,1740381043133,-5902.47918616,0.000137,2]
[354270466,1740381043145,-691.15,0.000137,2]
[354270467,1740381043156,-872.23335984,0.000137,2]
[354270468,1740381043167,-3061.45650446,0.000137,2]
[354270470,1740381043178,-1641.09759612,0.000137,2]
[354270479,1740381046011,-15587.95385388,0.000137,2]
[354270480,1740381046023,-68678.63144309,0.000137,2]
[354270481,1740381046034,-19351.97822341,0.000137,2]
[354270482,1740381046049,-4066.81850203,0.000137,2]
[354270483,1740381046089,-331.266836,0.000137,2]
[354270492,1740381061288,188.43338,9.041e-05,2]
[354270515,1740381821750,1026.0,0.00019,120]
[354270520,1740382112724,1142.58282213,0.00018138,90]
[354270521,1740382115409,201.051253,9.041e-05,2]
[354270560,1740382232268,-300.0,0.00012886,2]
[354270561,1740382232278,-537.6261697,0.00012887,2]
[354270562,1740382232411,-23410.8998649,0.00012887,2]
[354270563,1740382232421,-8564.86755332,0.00013442,2]
[354270564,1740382232431,-292.7714516,0.00013698,2]
[354270565,1740382232440,-500.0,0.00013698,2]
[354270566,1740382232450,-1223.08,0.00013698,2]
[354270567,1740382232460,-500.0,0.00013698,2]
[354270568,1740382232469,-500.0,0.00013698,2]
[354270569,1740382232479,-5291.72,0.00013698,2]
[354270570,1740382232488,-500.0,0.00013698,2]
[354270571,1740382232498,-501.74076935,0.00013698,2]
[354270572,1740382232507,-500.0,0.00013698,2]
[354270573,1740382232516,-500.0,0.00013698,2]
[354270574,1740382232525,-500.0,0.00013698,2]
[354270575,1740382232534,-971.74,0.00013698,2]
[354270576,1740382232544,-522.8233449,0.00013698,2]
[354270577,1740382232553,-500.0,0.00013698,2]
[354270578,1740382232562,-1271.71,0.00013698,2]
[354270579,1740382232571,-500.0,0.00013698,2]
[354270580,1740382232580,-500.0,0.00013698,2]
[354270581,1740382232589,-500.0,0.00013698,2]